[Event "Early-Titled-Tuesday-Blitz-May-07-2024"]
[Site "Chess.com"]
[Date "2024.05.07"]
[Round "9"]
[White "GlavkonVVS"]
[Black "vanyakuba"]
[Result "1-0"]
[WhiteElo "2677"]
[BlackElo "2446"]
[TimeControl "180+1"]
[EndTime "9:53:11 PDT"]
[Termination "GlavkonVVS won by resignation"]

1. c4 {[%clk 0:03:00.9]} 1... e6 {[%clk 0:03:00]} 2. Nc3 {[%clk 0:03:00.7]} 2...
d5 {[%clk 0:03:00.3]} 3. d4 {[%clk 0:03:01.2]} 3... c5 {[%clk 0:03:00.5]} 4. e3
{[%clk 0:03:00.3]} 4... Nf6 {[%clk 0:03:00.4]} 5. Nf3 {[%clk 0:03:00.2]} 5... a6
{[%clk 0:03:00.7]} 6. a3 {[%clk 0:02:59.7]} 6... dxc4 {[%clk 0:03:00.6]} 7. Bxc4
{[%clk 0:02:59.6]} 7... b5 {[%clk 0:03:00.9]} 8. Ba2 {[%clk 0:03:00]} 8... Bb7
{[%clk 0:03:01.4]} 9. O-O {[%clk 0:02:59.6]} 9... cxd4 {[%clk 0:02:57.1]} 10.
exd4 {[%clk 0:02:53.8]} 10... Be7 {[%clk 0:02:56.7]} 11. Qe2 {[%clk 0:02:52.8]}
11... O-O {[%clk 0:02:55.3]} 12. Rd1 {[%clk 0:02:52.9]} 12... Nd5 {[%clk
0:02:49.6]} 13. Bd2 {[%clk 0:02:40.4]} 13... Nxc3 {[%clk 0:02:26.2]} 14. Bxc3
{[%clk 0:02:39]} 14... Bd5 {[%clk 0:02:25.8]} 15. Bb1 {[%clk 0:02:10.3]} 15...
Nd7 {[%clk 0:02:18.9]} 16. Ne5 {[%clk 0:02:08]} 16... Nxe5 {[%clk 0:01:49]} 17.
dxe5 {[%clk 0:02:07]} 17... Qb6 {[%clk 0:01:34.7]} 18. Be4 {[%clk 0:02:03.5]}
18... Bxe4 {[%clk 0:01:30.6]} 19. Qxe4 {[%clk 0:02:03.6]} 19... Bc5 {[%clk
0:01:30.5]} 20. Qf4 {[%clk 0:01:54.5]} 20... Rfd8 {[%clk 0:01:20.6]} 21. b4
{[%clk 0:01:44.4]} 21... Be7 {[%clk 0:01:19.7]} 22. h4 {[%clk 0:01:35.3]} 22...
Rac8 {[%clk 0:01:09.7]} 23. Bd4 {[%clk 0:01:35.4]} 23... Qb7 {[%clk 0:01:05.8]}
24. Rac1 {[%clk 0:01:29.4]} 24... Qd5 {[%clk 0:00:48.9]} 25. Rxc8 {[%clk
0:01:16.7]} 25... Rxc8 {[%clk 0:00:49.8]} 26. Rd2 {[%clk 0:01:05.9]} 26... Rc4
{[%clk 0:00:36.3]} 27. Kh2 {[%clk 0:00:44.1]} 27... h6 {[%clk 0:00:29]} 28. g3
{[%clk 0:00:42.2]} 28... g5 {[%clk 0:00:25.8]} 29. Qg4 {[%clk 0:00:32.4]} 29...
Rc1 {[%clk 0:00:20.9]} 30. f3 {[%clk 0:00:27.8]} 30... Rc4 {[%clk 0:00:16.1]}
31. h5 {[%clk 0:00:20.7]} 31... a5 {[%clk 0:00:13.3]} 32. bxa5 {[%clk
0:00:20.2]} 32... Bxa3 {[%clk 0:00:13.2]} 33. Qe4 {[%clk 0:00:19]} 33... Qxe4
{[%clk 0:00:04.8]} 34. fxe4 {[%clk 0:00:19.4]} 34... b4 {[%clk 0:00:05.3]} 35.
a6 {[%clk 0:00:19]} 35... Rc8 {[%clk 0:00:04.6]} 36. a7 {[%clk 0:00:19]} 36...
Ra8 {[%clk 0:00:04.7]} 37. Rd3 {[%clk 0:00:18.7]} 37... Kf8 {[%clk 0:00:03.6]}
38. g4 {[%clk 0:00:19]} 38... Ke8 {[%clk 0:00:04]} 39. Kg3 {[%clk 0:00:19]}
39... Kd7 {[%clk 0:00:04.3]} 40. Bc5+ {[%clk 0:00:19.3]} 40... Kc6 {[%clk
0:00:04.8]} 41. Be3 {[%clk 0:00:19.1]} 41... Kb5 {[%clk 0:00:04.6]} 42. Kf3
{[%clk 0:00:18.3]} 42... Kc4 {[%clk 0:00:05]} 43. Rd7 {[%clk 0:00:17.9]} 43...
b3 {[%clk 0:00:04.9]} 44. Rc7+ {[%clk 0:00:18.5]} 44... Kb5 {[%clk 0:00:03]} 45.
Rb7+ {[%clk 0:00:18.4]} 45... Ka6 {[%clk 0:00:03.6]} 46. Rxb3 {[%clk 0:00:17.6]}
46... Be7 {[%clk 0:00:03.4]} 47. Rd3 {[%clk 0:00:17.4]} 47... Bb4 {[%clk
0:00:02.3]} 48. Rd7 {[%clk 0:00:17.5]} 48... Kb5 {[%clk 0:00:03.1]} 49. Rxf7
{[%clk 0:00:17.5]} 49... Rc8 {[%clk 0:00:02.9]} 50. Rf6 {[%clk 0:00:17.6]} 50...
Re8 {[%clk 0:00:02.2]} 51. Rxh6 {[%clk 0:00:17.2]} 51... Kc4 {[%clk 0:00:02.8]}
52. Rf6 {[%clk 0:00:17.5]} 52... Kd3 {[%clk 0:00:02.9]} 53. Bxg5 {[%clk
0:00:17.5]} 53... Rc8 {[%clk 0:00:02.1]} 54. Rxe6 {[%clk 0:00:17.2]} 54... Bc3
{[%clk 0:00:02.3]} 55. Rc6 {[%clk 0:00:16.6]} 55... Rxc6 {[%clk 0:00:01.6]} 56.
a8=Q {[%clk 0:00:16.7]} 56... Rc4 {[%clk 0:00:02]} 57. Qd5+ {[%clk 0:00:16.4]}
57... Bd4 {[%clk 0:00:02.3]} 58. Be3 {[%clk 0:00:15.4]} 1-0

[Event "Early-Titled-Tuesday-Blitz-May-07-2024"]
[Site "Chess.com"]
[Date "2024.05.07"]
[Round "9"]
[White "betta2004"]
[Black "HanSchut"]
[Result "0-1"]
[WhiteElo "2528"]
[BlackElo "2387"]
[TimeControl "180+1"]
[EndTime "9:53:13 PDT"]
[Termination "HanSchut won by resignation"]

1. d4 {[%clk 0:02:58.9]} 1... Nf6 {[%clk 0:02:51.3]} 2. c4 {[%clk 0:02:28.2]}
2... g6 {[%clk 0:02:50.3]} 3. Nc3 {[%clk 0:02:23.7]} 3... d5 {[%clk 0:02:50.7]}
4. Nf3 {[%clk 0:01:53.1]} 4... Bg7 {[%clk 0:02:49.4]} 5. Bg5 {[%clk 0:01:51.6]}
5... Ne4 {[%clk 0:02:48.8]} 6. cxd5 {[%clk 0:01:50.7]} 6... Nxg5 {[%clk
0:02:48]} 7. Nxg5 {[%clk 0:01:51.6]} 7... e6 {[%clk 0:02:48.5]} 8. Qd2 {[%clk
0:01:23.8]} 8... h6 {[%clk 0:02:48.2]} 9. Nf3 {[%clk 0:01:16.9]} 9... exd5
{[%clk 0:02:47.9]} 10. Qe3+ {[%clk 0:01:17.5]} 10... Be6 {[%clk 0:02:43.9]} 11.
h4 {[%clk 0:01:13.9]} 11... O-O {[%clk 0:02:34.1]} 12. Ne5 {[%clk 0:01:06.6]}
12... Re8 {[%clk 0:02:13.9]} 13. O-O-O {[%clk 0:01:02.2]} 13... Nd7 {[%clk
0:01:54.1]} 14. f4 {[%clk 0:01:01.6]} 14... Rc8 {[%clk 0:01:43.1]} 15. Qf3
{[%clk 0:00:54.3]} 15... c5 {[%clk 0:01:34.2]} 16. e3 {[%clk 0:00:54.5]} 16...
cxd4 {[%clk 0:01:13.1]} 17. exd4 {[%clk 0:00:55.4]} 17... Nxe5 {[%clk
0:01:09.5]} 18. dxe5 {[%clk 0:00:38.8]} 18... d4 {[%clk 0:00:55.5]} 19. Kb1
{[%clk 0:00:20.3]} 19... dxc3 {[%clk 0:00:30.6]} 20. Rxd8 {[%clk 0:00:20]} 20...
c2+ {[%clk 0:00:31.4]} 21. Kc1 {[%clk 0:00:20.1]} 21... Rexd8 {[%clk 0:00:31.7]}
22. Bd3 {[%clk 0:00:19.6]} 22... Bxa2 {[%clk 0:00:29.4]} 23. h5 {[%clk
0:00:19.2]} 23... gxh5 {[%clk 0:00:22.6]} 24. Qe4 {[%clk 0:00:19.1]} 24... Bd5
{[%clk 0:00:18.3]} 25. Qh7+ {[%clk 0:00:18.8]} 25... Kf8 {[%clk 0:00:19]} 26.
Re1 {[%clk 0:00:12.9]} 26... Bc4 {[%clk 0:00:12.1]} 27. Bxc4 {[%clk 0:00:11.4]}
27... Rxc4 {[%clk 0:00:13]} 28. f5 {[%clk 0:00:11.6]} 28... f6 {[%clk
0:00:06.6]} 29. exf6 {[%clk 0:00:10]} 29... Bxf6 {[%clk 0:00:06.8]} 30. Qxh6+
{[%clk 0:00:10.5]} 30... Bg7 {[%clk 0:00:07.1]} 31. Qg5 {[%clk 0:00:09.7]} 31...
Rd6 {[%clk 0:00:04.9]} 32. Qe7+ {[%clk 0:00:09]} 32... Kg8 {[%clk 0:00:03.4]}
33. Qxd6 {[%clk 0:00:09.5]} 33... Bh6+ {[%clk 0:00:04.3]} 34. Qd2 {[%clk
0:00:06.4]} 34... Bxd2+ {[%clk 0:00:03.8]} 35. Kxd2 {[%clk 0:00:07.3]} 35... Kf7
{[%clk 0:00:04.1]} 36. b3 {[%clk 0:00:06.2]} 36... Rc7 {[%clk 0:00:03.4]} 37.
Rc1 {[%clk 0:00:06.7]} 37... Kf6 {[%clk 0:00:03.5]} 38. Ke3 {[%clk 0:00:07.1]}
38... Kxf5 {[%clk 0:00:03.7]} 39. Kd4 {[%clk 0:00:07.7]} 39... Kg4 {[%clk
0:00:04]} 40. Kd5 {[%clk 0:00:08.2]} 40... Rc6 {[%clk 0:00:04.1]} 41. b4 {[%clk
0:00:08.3]} 41... Kg3 {[%clk 0:00:04.6]} 42. b5 {[%clk 0:00:08.9]} 42... Rc3
{[%clk 0:00:04.4]} 43. Kd4 {[%clk 0:00:08.5]} 43... Rc8 {[%clk 0:00:03.9]} 44.
Kd3 {[%clk 0:00:08.9]} 44... Kxg2 {[%clk 0:00:03.9]} 45. Kd2 {[%clk 0:00:09.4]}
45... Kg3 {[%clk 0:00:03.9]} 46. Ra1 {[%clk 0:00:10.2]} 46... c1=Q+ {[%clk
0:00:03.7]} 47. Rxc1 {[%clk 0:00:10.8]} 47... Rxc1 {[%clk 0:00:04.1]} 48. Kxc1
{[%clk 0:00:11.7]} 48... h4 {[%clk 0:00:04.7]} 49. Kd2 {[%clk 0:00:12.4]} 49...
b6 {[%clk 0:00:05.2]} 50. Kd3 {[%clk 0:00:12.6]} 50... h3 {[%clk 0:00:06.1]} 51.
Kd4 {[%clk 0:00:13.5]} 51... h2 {[%clk 0:00:06.8]} 52. Kd5 {[%clk 0:00:14.4]}
52... h1=Q+ {[%clk 0:00:07.7]} 53. Kd6 {[%clk 0:00:15]} 53... Qb7 {[%clk
0:00:07.7]} 54. Ke5 {[%clk 0:00:15]} 54... a6 {[%clk 0:00:08.2]} 55. Kd6 {[%clk
0:00:15.9]} 55... axb5 {[%clk 0:00:08.5]} 56. Ke5 {[%clk 0:00:16.5]} 56... Qa6
{[%clk 0:00:09.2]} 57. Kd4 {[%clk 0:00:17.4]} 57... Qa4+ {[%clk 0:00:09.8]} 58.
Kc3 {[%clk 0:00:18.3]} 58... Qc4+ {[%clk 0:00:10.4]} 59. Kb2 {[%clk 0:00:19.2]}
59... b4 {[%clk 0:00:10]} 60. Kb1 {[%clk 0:00:20.1]} 60... Qc3 {[%clk
0:00:10.8]} 61. Ka2 {[%clk 0:00:20.5]} 61... Qc2+ {[%clk 0:00:11]} 62. Ka1
{[%clk 0:00:20.8]} 62... Qc1+ {[%clk 0:00:11.5]} 63. Ka2 {[%clk 0:00:21.2]}
63... Qc4+ {[%clk 0:00:10.9]} 64. Kb1 {[%clk 0:00:21.6]} 64... b3 {[%clk
0:00:11.7]} 65. Ka1 {[%clk 0:00:22.5]} 65... Qa4+ {[%clk 0:00:11.6]} 66. Kb2
{[%clk 0:00:23.4]} 66... Qa2+ {[%clk 0:00:12.3]} 67. Kc3 {[%clk 0:00:24.3]}
67... Qc2+ {[%clk 0:00:13]} 68. Kb4 {[%clk 0:00:25.2]} 68... b2 {[%clk
0:00:13.5]} 69. Kb5 {[%clk 0:00:26.1]} 69... b1=Q+ {[%clk 0:00:14.1]} 70. Ka6
{[%clk 0:00:27]} 70... Qca2+ {[%clk 0:00:14.4]} 71. Kb7 {[%clk 0:00:27.9]} 71...
b5 {[%clk 0:00:14.9]} 72. Kb8 {[%clk 0:00:28.4]} 72... b4 {[%clk 0:00:15.8]} 73.
Kb7 {[%clk 0:00:29.3]} 73... b3 {[%clk 0:00:16.7]} 74. Kc7 {[%clk 0:00:30.2]}
74... b2 {[%clk 0:00:17.6]} 75. Kd6 {[%clk 0:00:31.1]} 75... Qc2 {[%clk
0:00:18.4]} 76. Ke7 {[%clk 0:00:32]} 76... Qab3 {[%clk 0:00:18.7]} 77. Kf8
{[%clk 0:00:32.9]} 77... b1=Q {[%clk 0:00:19.6]} 78. Kg7 {[%clk 0:00:33.8]}
78... Qbd1 {[%clk 0:00:20.3]} 79. Kh8 {[%clk 0:00:34.7]} 79... Qbd3 {[%clk
0:00:20.6]} 80. Kg7 {[%clk 0:00:35.6]} 80... Qce2 {[%clk 0:00:21.2]} 81. Kh8
{[%clk 0:00:36.5]} 81... Qdf3 {[%clk 0:00:21.7]} 0-1

[Event "Early-Titled-Tuesday-Blitz-May-07-2024"]
[Site "Chess.com"]
[Date "2024.05.07"]
[Round "9"]
[White "pauliukevicius"]
[Black "HajiyevKanan"]
[Result "0-1"]
[WhiteElo "2446"]
[BlackElo "2583"]
[TimeControl "180+1"]
[EndTime "9:53:20 PDT"]
[Termination "HajiyevKanan won by resignation"]

1. e4 {[%clk 0:03:00.9]} 1... c6 {[%clk 0:02:59.6]} 2. d4 {[%clk 0:03:00.7]}
2... d5 {[%clk 0:03:00.5]} 3. Nc3 {[%clk 0:03:01.2]} 3... a6 {[%clk 0:03:00.5]}
4. Nh3 {[%clk 0:02:56.2]} 4... Bxh3 {[%clk 0:02:54.4]} 5. gxh3 {[%clk
0:02:56.1]} 5... e6 {[%clk 0:02:54.2]} 6. exd5 {[%clk 0:02:55.7]} 6... cxd5
{[%clk 0:02:54]} 7. Bg2 {[%clk 0:02:55]} 7... Nc6 {[%clk 0:02:54.3]} 8. a3
{[%clk 0:02:51.8]} 8... Bd6 {[%clk 0:02:52.2]} 9. Ne2 {[%clk 0:02:52.3]} 9...
Nge7 {[%clk 0:02:48.8]} 10. b4 {[%clk 0:02:50.7]} 10... O-O {[%clk 0:02:48.6]}
11. O-O {[%clk 0:02:48.2]} 11... Rc8 {[%clk 0:02:48.6]} 12. Qd3 {[%clk
0:02:47.1]} 12... Ng6 {[%clk 0:02:45.1]} 13. Bb2 {[%clk 0:02:44.2]} 13... Qc7
{[%clk 0:02:45.3]} 14. f4 {[%clk 0:02:42.7]} 14... Nxf4 {[%clk 0:02:44.3]} 15.
Nxf4 {[%clk 0:02:43.6]} 15... Bxf4 {[%clk 0:02:44.6]} 16. Kh1 {[%clk 0:02:42.3]}
16... Bxh2 {[%clk 0:02:43.1]} 17. c4 {[%clk 0:02:38]} 17... dxc4 {[%clk
0:02:41]} 18. Qxc4 {[%clk 0:02:38.9]} 18... Bd6 {[%clk 0:02:35.8]} 19. d5 {[%clk
0:02:36.8]} 19... Nd8 {[%clk 0:02:11.1]} 20. Qg4 {[%clk 0:02:35.7]} 20... Be5
{[%clk 0:02:03.2]} 21. Rac1 {[%clk 0:02:35.5]} 21... Bxb2 {[%clk 0:01:47.8]} 22.
Rxc7 {[%clk 0:02:33.1]} 22... Rxc7 {[%clk 0:01:48.7]} 23. d6 {[%clk 0:02:32.9]}
23... Rd7 {[%clk 0:01:47.2]} 24. Qg3 {[%clk 0:02:31.1]} 24... Bd4 {[%clk
0:01:33.3]} 25. Qh4 {[%clk 0:02:11.4]} 25... Bf6 {[%clk 0:01:15.7]} 26. Qg3
{[%clk 0:02:06.2]} 26... Bd4 {[%clk 0:01:13.3]} 27. Qg5 {[%clk 0:02:00.8]} 27...
h6 {[%clk 0:00:55.7]} 28. Qa5 {[%clk 0:01:56.8]} 28... Rxd6 {[%clk 0:00:45.5]}
29. Qc7 {[%clk 0:01:51]} 29... Be5 {[%clk 0:00:43.6]} 30. Qc5 {[%clk 0:01:32.5]}
30... f6 {[%clk 0:00:40.1]} 31. Re1 {[%clk 0:01:32.3]} 31... Bg3 {[%clk
0:00:33.4]} 32. Rc1 {[%clk 0:01:23.3]} 32... Nc6 {[%clk 0:00:29.9]} 33. Qe3
{[%clk 0:01:11.5]} 33... Be5 {[%clk 0:00:23.5]} 34. Bxc6 {[%clk 0:01:11.4]}
34... bxc6 {[%clk 0:00:23.5]} 35. Qb6 {[%clk 0:01:11.1]} 35... Rfd8 {[%clk
0:00:17.3]} 36. Rxc6 {[%clk 0:01:08.5]} 36... Rd1+ {[%clk 0:00:15.1]} 37. Kg2
{[%clk 0:01:09.1]} 37... R8d2+ {[%clk 0:00:15.1]} 38. Kf3 {[%clk 0:01:09.8]}
38... Rf1+ {[%clk 0:00:14.1]} 39. Ke3 {[%clk 0:01:07.6]} 39... Bd4+ {[%clk
0:00:09.7]} 40. Kxd2 {[%clk 0:01:07.6]} 40... Bxb6 {[%clk 0:00:08.9]} 41. Rxb6
{[%clk 0:01:08.5]} 41... a5 {[%clk 0:00:07]} 42. bxa5 {[%clk 0:01:07.8]} 42...
Rf3 {[%clk 0:00:06.6]} 43. Rxe6 {[%clk 0:01:02.6]} 43... Rxa3 {[%clk 0:00:06.5]}
44. a6 {[%clk 0:01:03.5]} 44... Rxh3 {[%clk 0:00:06.3]} 45. Rb6 {[%clk
0:01:04.4]} 45... Ra3 {[%clk 0:00:06.3]} 46. Ke2 {[%clk 0:01:03.4]} 46... Kh7
{[%clk 0:00:06.8]} 47. Kf2 {[%clk 0:01:04]} 47... Kg6 {[%clk 0:00:07.5]} 48. Kg2
{[%clk 0:01:04.7]} 48... h5 {[%clk 0:00:08.3]} 49. Rb7 {[%clk 0:01:05.3]} 49...
Kh6 {[%clk 0:00:08.7]} 50. a7 {[%clk 0:01:05.8]} 50... g5 {[%clk 0:00:07.4]} 51.
Rb6 {[%clk 0:01:03.2]} 51... Rxa7 {[%clk 0:00:06.5]} 52. Rxf6+ {[%clk
0:01:03.4]} 52... Kg7 {[%clk 0:00:07.2]} 53. Rb6 {[%clk 0:01:03.7]} 53... h4
{[%clk 0:00:07.1]} 54. Kf3 {[%clk 0:01:03.7]} 54... Ra4 {[%clk 0:00:07.3]} 55.
Rc6 {[%clk 0:01:03.3]} 55... Rf4+ {[%clk 0:00:07.3]} 56. Kg2 {[%clk 0:01:03.8]}
56... Rf6 {[%clk 0:00:07.5]} 57. Rc8 {[%clk 0:01:03.2]} 57... Kg6 {[%clk
0:00:08]} 58. Kh3 {[%clk 0:01:03.8]} 58... Rf3+ {[%clk 0:00:07.9]} 59. Kg2
{[%clk 0:01:03.6]} 59... Re3 {[%clk 0:00:08]} 60. Kf2 {[%clk 0:01:03.7]} 60...
Rd3 {[%clk 0:00:07.7]} 61. Rc6+ {[%clk 0:01:03.3]} 61... Kf5 {[%clk 0:00:07.9]}
62. Rc4 {[%clk 0:01:03.4]} 62... Rd2+ {[%clk 0:00:06.4]} 63. Ke3 {[%clk
0:01:01.5]} 63... Ra2 {[%clk 0:00:05.7]} 64. Kf3 {[%clk 0:01:01.9]} 64... Ra3+
{[%clk 0:00:05.1]} 65. Kg2 {[%clk 0:01:01.9]} 65... g4 {[%clk 0:00:05.7]} 66.
Rc5+ {[%clk 0:01:02]} 66... Kg6 {[%clk 0:00:05.9]} 67. Rc6+ {[%clk 0:01:02.4]}
67... Kf5 {[%clk 0:00:06.5]} 68. Rc5+ {[%clk 0:01:02.9]} 68... Kf6 {[%clk
0:00:07.2]} 69. Rc6+ {[%clk 0:01:03.5]} 69... Ke5 {[%clk 0:00:07.9]} 70. Rc5+
{[%clk 0:01:04.1]} 70... Kd6 {[%clk 0:00:08]} 71. Rc4 {[%clk 0:01:04.6]} 71...
Rg3+ {[%clk 0:00:06.9]} 72. Kh2 {[%clk 0:01:04.8]} 72... Kd5 {[%clk 0:00:07.8]}
73. Ra4 {[%clk 0:01:04.7]} 73... Ke5 {[%clk 0:00:06.7]} 74. Ra5+ {[%clk
0:01:04.6]} 74... Kf6 {[%clk 0:00:07.2]} 75. Ra6+ {[%clk 0:01:05.2]} 75... Ke7
{[%clk 0:00:07.8]} 76. Ra7+ {[%clk 0:01:05.8]} 76... Kd6 {[%clk 0:00:08.5]} 77.
Ra6+ {[%clk 0:01:06.3]} 77... Kc5 {[%clk 0:00:09.2]} 78. Ra5+ {[%clk 0:01:06.8]}
78... Kb4 {[%clk 0:00:09.9]} 79. Rg5 {[%clk 0:01:05.6]} 79... Kc3 {[%clk
0:00:09.3]} 80. Re5 {[%clk 0:01:06.2]} 80... Kd4 {[%clk 0:00:09.5]} 81. Re8
{[%clk 0:01:06.7]} 81... Re3 {[%clk 0:00:09.1]} 82. Ra8 {[%clk 0:01:06.4]} 82...
Re2+ {[%clk 0:00:08.2]} 83. Kg1 {[%clk 0:01:06.4]} 83... h3 {[%clk 0:00:08.6]}
84. Ra4+ {[%clk 0:01:04]} 84... Ke3 {[%clk 0:00:09.2]} 85. Rxg4 {[%clk
0:01:04.5]} 85... Kf3 {[%clk 0:00:09.2]} 86. Rg8 {[%clk 0:01:05.2]} 86... Rg2+
{[%clk 0:00:08.5]} 87. Rxg2 {[%clk 0:01:03.5]} 87... hxg2 {[%clk 0:00:09.4]} 88.
Kh2 {[%clk 0:01:03.8]} 88... Kf2 {[%clk 0:00:10.1]} 89. Kh3 {[%clk 0:01:04.7]}
89... g1=Q {[%clk 0:00:10.6]} 0-1

[Event "Early-Titled-Tuesday-Blitz-May-07-2024"]
[Site "Chess.com"]
[Date "2024.05.07"]
[Round "9"]
[White "ab-lsv"]
[Black "Bilan_Danila"]
[Result "0-1"]
[WhiteElo "2376"]
[BlackElo "2542"]
[TimeControl "180+1"]
[EndTime "9:53:20 PDT"]
[Termination "Bilan_Danila won on time"]

1. d4 {[%clk 0:02:59.6]} 1... d5 {[%clk 0:02:59.6]} 2. c4 {[%clk 0:02:59.9]}
2... c6 {[%clk 0:02:59.5]} 3. Nc3 {[%clk 0:03:00]} 3... Nf6 {[%clk 0:02:59.8]}
4. e3 {[%clk 0:03:00.5]} 4... e6 {[%clk 0:03:00]} 5. Nf3 {[%clk 0:03:00.6]} 5...
Nbd7 {[%clk 0:03:00.6]} 6. Be2 {[%clk 0:03:00.9]} 6... Bd6 {[%clk 0:03:00.5]} 7.
O-O {[%clk 0:03:00.7]} 7... O-O {[%clk 0:03:00.9]} 8. b3 {[%clk 0:03:01.2]} 8...
dxc4 {[%clk 0:02:52.3]} 9. bxc4 {[%clk 0:03:01]} 9... e5 {[%clk 0:02:52.5]} 10.
Qc2 {[%clk 0:03:00.9]} 10... a6 {[%clk 0:02:36.9]} 11. Rd1 {[%clk 0:02:59.3]}
11... Qc7 {[%clk 0:02:34.7]} 12. h3 {[%clk 0:02:49.2]} 12... exd4 {[%clk
0:02:20.4]} 13. exd4 {[%clk 0:02:48.5]} 13... c5 {[%clk 0:02:08.3]} 14. d5
{[%clk 0:02:33.9]} 14... Ne5 {[%clk 0:01:52.1]} 15. Bb2 {[%clk 0:02:20.8]} 15...
Ng6 {[%clk 0:01:47.7]} 16. a4 {[%clk 0:02:11.5]} 16... Nf4 {[%clk 0:01:33.2]}
17. Bf1 {[%clk 0:02:11.3]} 17... g6 {[%clk 0:01:32.5]} 18. Nb5 {[%clk
0:01:20.1]} 18... axb5 {[%clk 0:01:29.8]} 19. Bxf6 {[%clk 0:01:20.2]} 19... Bf5
{[%clk 0:01:21.1]} 20. Qb2 {[%clk 0:01:19.4]} 20... bxa4 {[%clk 0:01:15.2]} 21.
Bh8 {[%clk 0:00:59.8]} 21... Nh5 {[%clk 0:00:37.2]} 22. g4 {[%clk 0:00:57.8]}
22... f6 {[%clk 0:00:37.3]} 23. gxf5 {[%clk 0:00:49.4]} 23... Kxh8 {[%clk
0:00:36.4]} 24. fxg6 {[%clk 0:00:43.1]} 24... hxg6 {[%clk 0:00:36.7]} 25. Qc2
{[%clk 0:00:42.9]} 25... Nf4 {[%clk 0:00:28.3]} 26. Rxa4 {[%clk 0:00:42.6]}
26... Rxa4 {[%clk 0:00:28.2]} 27. Qxa4 {[%clk 0:00:42.9]} 27... Kg7 {[%clk
0:00:27.8]} 28. Rb1 {[%clk 0:00:27.8]} 28... Rf7 {[%clk 0:00:19.2]} 29. Qa7
{[%clk 0:00:22.4]} 29... Qd7 {[%clk 0:00:16.4]} 30. Qb6 {[%clk 0:00:16.6]} 30...
Nxh3+ {[%clk 0:00:10.7]} 31. Bxh3 {[%clk 0:00:11]} 31... Qxh3 {[%clk 0:00:10.3]}
32. Qxd6 {[%clk 0:00:09.9]} 32... Qxf3 {[%clk 0:00:10.9]} 33. Qxc5 {[%clk
0:00:08.9]} 33... Qg4+ {[%clk 0:00:07.1]} 34. Kf1 {[%clk 0:00:07]} 34... Qh3+
{[%clk 0:00:05.1]} 35. Kg1 {[%clk 0:00:06.7]} 35... Qg4+ {[%clk 0:00:02.8]} 36.
Kf1 {[%clk 0:00:07]} 36... g5 {[%clk 0:00:01.4]} 37. Re1 {[%clk 0:00:06.8]}
37... Qh3+ {[%clk 0:00:01.9]} 38. Kg1 {[%clk 0:00:07]} 38... Kg6 {[%clk
0:00:01.6]} 39. Re7 {[%clk 0:00:06.3]} 39... Qg4+ {[%clk 0:00:00.7]} 40. Kf1
{[%clk 0:00:06.7]} 40... Qd1+ {[%clk 0:00:01.3]} 41. Kg2 {[%clk 0:00:06.8]}
41... Qg4+ {[%clk 0:00:01.5]} 42. Kf1 {[%clk 0:00:07.3]} 42... Rxe7 {[%clk
0:00:02.3]} 43. Qxe7 {[%clk 0:00:07.3]} 43... Qxc4+ {[%clk 0:00:03]} 44. Kg1
{[%clk 0:00:04.2]} 44... Qxd5 {[%clk 0:00:03.4]} 45. Qe8+ {[%clk 0:00:04.1]}
45... Kf5 {[%clk 0:00:03.5]} 46. Qc8+ {[%clk 0:00:03.3]} 46... Ke4 {[%clk
0:00:03.3]} 47. Qc2+ {[%clk 0:00:03.2]} 47... Ke5 {[%clk 0:00:03.2]} 48. Qb2+
{[%clk 0:00:02.3]} 48... Ke6 {[%clk 0:00:02.4]} 49. Qe2+ {[%clk 0:00:01.9]}
49... Kf7 {[%clk 0:00:02.5]} 50. Qb5 {[%clk 0:00:01.4]} 50... Qxb5 {[%clk
0:00:02.4]} 0-1